[Event "Live Chess"]
[Site "Chess.com"]
[Date "2023.05.20"]
[Round "-"]
[White "JoshMcK"]
[Black "EdenHazard8"]
[Result "0-1"]
[WhiteElo "1539"]
[BlackElo "2121"]
[TimeControl "300"]
[EndTime "9:36:16 PDT"]
[Termination "EdenHazard8 won by checkmate"]

1. e4 {[%clk 0:04:58.9]} 1... c5 {[%clk 0:04:59]} 2. c3 {[%clk 0:04:57]} 2...
Nc6 {[%clk 0:04:58.2]} 3. d4 {[%clk 0:04:51.9]} 3... cxd4 {[%clk 0:04:58.1]} 4.
cxd4 {[%clk 0:04:51.3]} 4... d5 {[%clk 0:04:57.8]} 5. exd5 {[%clk 0:04:48.2]}
5... Qxd5 {[%clk 0:04:57.7]} 6. Nf3 {[%clk 0:04:47.2]} 6... Bg4 {[%clk 0:04:56]}
7. Nc3 {[%clk 0:04:36.8]} 7... Qh5 {[%clk 0:04:54.5]} 8. Be2 {[%clk 0:04:29.6]}
8... O-O-O {[%clk 0:04:46.6]} 9. Be3 {[%clk 0:04:21.7]} 9... Nf6 {[%clk
0:04:30.1]} 10. O-O {[%clk 0:04:18.9]} 10... e5 {[%clk 0:04:25.6]} 11. d5 {[%clk
0:03:57.6]} 11... e4 {[%clk 0:04:23.3]} 12. h3 {[%clk 0:03:32.4]} 12... exf3
{[%clk 0:04:19.5]} 13. hxg4 {[%clk 0:03:30.8]} 13... Nxg4 {[%clk 0:04:18.6]} 14.
Bxf3 {[%clk 0:03:29.4]} 14... Qh2# {[%clk 0:04:17.2]} 0-1

[Event "Live Chess"]
[Site "Chess.com"]
[Date "2023.05.20"]
[Round "-"]
[White "Albul"]
[Black "yeetpizza74"]
[Result "1-0"]
[WhiteElo "2194"]
[BlackElo "447"]
[TimeControl "300"]
[EndTime "9:36:18 PDT"]
[Termination "Albul won by checkmate"]

1. e4 {[%clk 0:04:58.5]} 1... c6 {[%clk 0:04:58.9]} 2. d4 {[%clk 0:04:56]} 2...
d5 {[%clk 0:04:57.8]} 3. e5 {[%clk 0:04:55.7]} 3... e6 {[%clk 0:04:56.2]} 4. Bd3
{[%clk 0:04:54.4]} 4... c5 {[%clk 0:04:54.7]} 5. c3 {[%clk 0:04:53.9]} 5... cxd4
{[%clk 0:04:53.3]} 6. cxd4 {[%clk 0:04:52.8]} 6... Bb4+ {[%clk 0:04:50]} 7. Bd2
{[%clk 0:04:51.7]} 7... Bxd2+ {[%clk 0:04:48.7]} 8. Qxd2 {[%clk 0:04:50.2]} 8...
f6 {[%clk 0:04:47.9]} 9. Nf3 {[%clk 0:04:44.1]} 9... Ne7 {[%clk 0:04:42.8]} 10.
exf6 {[%clk 0:04:34.9]} 10... gxf6 {[%clk 0:04:41.1]} 11. Nc3 {[%clk 0:04:26.6]}
11... Ng6 {[%clk 0:04:38.9]} 12. Qh6 {[%clk 0:04:20]} 12... e5 {[%clk
0:04:34.1]} 13. Bxg6+ {[%clk 0:04:17.1]} 13... hxg6 {[%clk 0:04:31.3]} 14. Qxh8+
{[%clk 0:04:16]} 14... Kd7 {[%clk 0:04:27.7]} 15. Qxd8+ {[%clk 0:04:14.8]} 15...
Kxd8 {[%clk 0:04:26.6]} 16. dxe5 {[%clk 0:04:13.4]} 16... fxe5 {[%clk
0:04:19.5]} 17. Nxe5 {[%clk 0:04:10.9]} 17... Nd7 {[%clk 0:04:17.3]} 18. Nxd7
{[%clk 0:04:08.5]} 18... Bxd7 {[%clk 0:04:15.9]} 19. Nxd5 {[%clk 0:04:07.7]}
19... Be6 {[%clk 0:04:09]} 20. O-O-O {[%clk 0:04:04.6]} 20... Bxd5 {[%clk
0:04:02.2]} 21. Rxd5+ {[%clk 0:04:02.7]} 21... Ke7 {[%clk 0:04:01.1]} 22. Re1+
{[%clk 0:04:01.6]} 22... Kf6 {[%clk 0:03:59.2]} 23. Rd6+ {[%clk 0:03:59.5]}
23... Kf7 {[%clk 0:03:56.9]} 24. Rd7+ {[%clk 0:03:57.6]} 24... Kf8 {[%clk
0:03:54.9]} 25. Rxb7 {[%clk 0:03:57.1]} 25... Rc8+ {[%clk 0:03:52.5]} 26. Kb1
{[%clk 0:03:56.6]} 26... Re8 {[%clk 0:03:49]} 27. Rxe8+ {[%clk 0:03:54.3]} 27...
Kxe8 {[%clk 0:03:48.2]} 28. Rxa7 {[%clk 0:03:54]} 28... Kf8 {[%clk 0:03:47.1]}
29. a4 {[%clk 0:03:52.1]} 29... Ke8 {[%clk 0:03:45.6]} 30. Kc2 {[%clk
0:03:51.6]} 30... Kd8 {[%clk 0:03:44.9]} 31. a5 {[%clk 0:03:51]} 31... Kc8
{[%clk 0:03:43.9]} 32. Rg7 {[%clk 0:03:50.6]} 32... Kb8 {[%clk 0:03:41.7]} 33.
b4 {[%clk 0:03:49.8]} 33... Ka8 {[%clk 0:03:40.1]} 34. b5 {[%clk 0:03:49.4]}
34... Kb8 {[%clk 0:03:39.1]} 35. a6 {[%clk 0:03:48.5]} 35... Kc8 {[%clk
0:03:37.7]} 36. a7 {[%clk 0:03:46.7]} 36... Kd8 {[%clk 0:03:36.5]} 37. a8=Q#
{[%clk 0:03:45.1]} 1-0

[Event "Live Chess"]
[Site "Chess.com"]
[Date "2023.05.20"]
[Round "-"]
[White "Leonid_Starozhilov"]
[Black "Greenbecker"]
[Result "1-0"]
[WhiteElo "2666"]
[BlackElo "1703"]
[TimeControl "300"]
[EndTime "9:36:20 PDT"]
[Termination "Leonid_Starozhilov won by resignation"]

1. e4 {[%clk 0:04:58.2]} 1... e6 {[%clk 0:04:58.5]} 2. d4 {[%clk 0:04:57.1]}
2... d5 {[%clk 0:04:57.5]} 3. e5 {[%clk 0:04:56.4]} 3... c5 {[%clk 0:04:56.2]}
4. c3 {[%clk 0:04:55.7]} 4... Nc6 {[%clk 0:04:55.2]} 5. Nf3 {[%clk 0:04:55]}
5... Qb6 {[%clk 0:04:54]} 6. a3 {[%clk 0:04:54.4]} 6... Bd7 {[%clk 0:04:53]} 7.
b4 {[%clk 0:04:53.1]} 7... cxd4 {[%clk 0:04:47.1]} 8. cxd4 {[%clk 0:04:50.2]}
8... Rc8 {[%clk 0:04:36.8]} 9. Bd3 {[%clk 0:04:45.2]} 9... Nxd4 {[%clk
0:04:25.6]} 10. Be3 {[%clk 0:04:34.1]} 10... Nxf3+ {[%clk 0:04:13.9]} 11. Qxf3
{[%clk 0:04:34]} 11... Qc7 {[%clk 0:03:54.6]} 12. O-O {[%clk 0:04:21.5]} 12...
Qxe5 {[%clk 0:03:45.9]} 13. Nd2 {[%clk 0:04:19.8]} 13... Bd6 {[%clk 0:03:36.4]}
14. g3 {[%clk 0:04:15.4]} 14... Qf6 {[%clk 0:03:16.2]} 15. Qe2 {[%clk
0:04:10.8]} 15... d4 {[%clk 0:03:01]} 16. Ne4 {[%clk 0:04:09.8]} 16... Qe5
{[%clk 0:02:37.3]} 17. Bf4 {[%clk 0:04:08.1]} 17... Qd5 {[%clk 0:02:36.5]} 18.
Nxd6+ {[%clk 0:04:06.9]} 18... Kd8 {[%clk 0:02:34]} 19. Nxc8 {[%clk 0:04:06.2]}
19... Bxc8 {[%clk 0:02:33]} 20. Rac1 {[%clk 0:04:05.2]} 20... Nf6 {[%clk
0:02:24.5]} 21. Rfd1 {[%clk 0:04:02.7]} 21... Bd7 {[%clk 0:02:21.9]} 22. Bc4
{[%clk 0:03:55.7]} 22... Qe4 {[%clk 0:02:15]} 23. Qxe4 {[%clk 0:03:54.3]} 23...
Nxe4 {[%clk 0:02:13.7]} 24. Rxd4 {[%clk 0:03:53.8]} 1-0

[Event "Live Chess"]
[Site "Chess.com"]
[Date "2023.05.20"]
[Round "-"]
[White "OBrightwell100"]
[Black "TDCMF"]
[Result "1-0"]
[WhiteElo "1329"]
[BlackElo "340"]
[TimeControl "300"]
[EndTime "9:36:27 PDT"]
[Termination "OBrightwell100 won on time"]

1. e4 {[%clk 0:04:56.6]} 1... e5 {[%clk 0:04:58.7]} 2. Qf3 {[%clk 0:04:53.5]}
2... Nf6 {[%clk 0:04:52.1]} 3. Nc3 {[%clk 0:04:50.4]} 3... Bc5 {[%clk
0:04:39.7]} 4. Bc4 {[%clk 0:04:49.3]} 4... Nc6 {[%clk 0:04:37.1]} 5. Nh3 {[%clk
0:04:47.1]} 5... d6 {[%clk 0:04:29.3]} 6. Ng5 {[%clk 0:04:44.7]} 6... Be6 {[%clk
0:04:15.7]} 7. Bxe6 {[%clk 0:04:42.3]} 7... fxe6 {[%clk 0:04:14.5]} 8. Nxe6
{[%clk 0:04:40.8]} 8... Qe7 {[%clk 0:04:09.2]} 9. Nd5 {[%clk 0:04:27]} 9... Qxe6
{[%clk 0:03:53.9]} 10. Nxc7+ {[%clk 0:04:25.8]} 10... Kd7 {[%clk 0:03:48]} 11.
Nxe6 {[%clk 0:04:25.7]} 11... Kxe6 {[%clk 0:03:44.4]} 12. c3 {[%clk 0:04:24.3]}
12... Rhd8 {[%clk 0:03:39]} 13. d3 {[%clk 0:04:23.3]} 13... d5 {[%clk
0:03:32.1]} 14. exd5+ {[%clk 0:04:21.3]} 14... Nxd5 {[%clk 0:03:30.7]} 15. c4
{[%clk 0:04:19.4]} 15... Ndb4 {[%clk 0:03:12.1]} 16. Qh3+ {[%clk 0:04:15.6]}
16... Kf7 {[%clk 0:03:01.4]} 17. Qf5+ {[%clk 0:04:11]} 17... Ke8 {[%clk
0:02:50.8]} 18. Qxh7 {[%clk 0:04:05.1]} 18... Nxd3+ {[%clk 0:02:38]} 19. Kd2
{[%clk 0:04:03.4]} 19... Nxc1+ {[%clk 0:02:31.8]} 20. Kxc1 {[%clk 0:03:55.8]}
20... e4 {[%clk 0:02:04.1]} 21. Qxe4+ {[%clk 0:03:48.9]} 21... Ne7 {[%clk
0:01:51.7]} 22. Re1 {[%clk 0:03:46.6]} 22... Rd4 {[%clk 0:01:46.5]} 23. Qe5
{[%clk 0:03:35.9]} 23... Rc8 {[%clk 0:01:35.8]} 24. a3 {[%clk 0:03:33.4]} 24...
Rd5 {[%clk 0:01:06.5]} 25. Qxd5 {[%clk 0:03:28.6]} 25... Kf8 {[%clk 0:00:29.5]}
26. Qh5 {[%clk 0:03:18.7]} 26... g6 {[%clk 0:00:19.8]} 27. Qh8+ {[%clk
0:03:16.4]} 27... Kf7 {[%clk 0:00:17.8]} 28. Rxe7+ {[%clk 0:03:10.7]} 28... Kxe7
{[%clk 0:00:16.2]} 29. Qxc8 {[%clk 0:03:09.6]} 29... Bxf2 {[%clk 0:00:12.3]} 30.
Qxb7+ {[%clk 0:03:08.6]} 30... Ke6 {[%clk 0:00:11.5]} 31. Qxa7 {[%clk
0:03:08.5]} 31... Kf5 {[%clk 0:00:10.5]} 32. Qd7+ {[%clk 0:03:07]} 32... Kf4
{[%clk 0:00:08.2]} 33. Qd2+ {[%clk 0:03:06.9]} 33... Ke4 {[%clk 0:00:06.7]} 34.
Qxf2 {[%clk 0:03:06.8]} 34... g5 {[%clk 0:00:05.6]} 35. Qe2+ {[%clk 0:03:03.7]}
35... Kf4 {[%clk 0:00:04.7]} 36. Qg4+ {[%clk 0:03:03.6]} 36... Kxg4 {[%clk
0:00:03.8]} 37. h3+ {[%clk 0:03:03.4]} 37... Kg3 {[%clk 0:00:02.7]} 38. b4
{[%clk 0:03:01.5]} 1-0

[Event "Live Chess"]
[Site "Chess.com"]
[Date "2023.05.20"]
[Round "-"]
[White "Pandreq"]
[Black "seabuck"]
[Result "0-1"]
[WhiteElo "1257"]
[BlackElo "1825"]
[TimeControl "300"]
[EndTime "9:36:32 PDT"]
[Termination "seabuck won by resignation"]

1. d4 {[%clk 0:04:57.6]} 1... e6 {[%clk 0:04:58.5]} 2. c4 {[%clk 0:04:56.5]}
2... d5 {[%clk 0:04:57.8]} 3. Nc3 {[%clk 0:04:52.3]} 3... c5 {[%clk 0:04:55.9]}
4. cxd5 {[%clk 0:04:50.8]} 4... exd5 {[%clk 0:04:54]} 5. Nf3 {[%clk 0:04:47.7]}
5... Nc6 {[%clk 0:04:52.6]} 6. dxc5 {[%clk 0:04:42.2]} 6... d4 {[%clk
0:04:51.2]} 7. Nb5 {[%clk 0:04:28.2]} 7... Qa5+ {[%clk 0:04:40.7]} 8. Nc3 {[%clk
0:04:14.8]} 8... dxc3 {[%clk 0:04:36.6]} 9. bxc3 {[%clk 0:04:11.3]} 9... Bxc5
{[%clk 0:04:22.2]} 10. Qb3 {[%clk 0:03:45.2]} 10... Be6 {[%clk 0:04:09]} 11. Qc2
{[%clk 0:03:27.2]} 11... Nf6 {[%clk 0:03:54.6]} 12. Bd2 {[%clk 0:03:25.6]} 12...
Qb6 {[%clk 0:03:48]} 13. e3 {[%clk 0:03:15.9]} 13... O-O {[%clk 0:03:41.7]} 14.
Rb1 {[%clk 0:03:13.9]} 14... Qc7 {[%clk 0:03:38.3]} 15. Nd4 {[%clk 0:03:05.6]}
15... Bxd4 {[%clk 0:03:31.8]} 16. cxd4 {[%clk 0:03:04.4]} 16... Rac8 {[%clk
0:03:15.4]} 17. Bb5 {[%clk 0:02:35.7]} 17... Bd5 {[%clk 0:02:57.6]} 18. O-O
{[%clk 0:02:32.7]} 18... a6 {[%clk 0:02:47.6]} 19. Ba4 {[%clk 0:02:27.2]} 19...
Be4 {[%clk 0:02:44.7]} 20. Qb2 {[%clk 0:02:16.8]} 20... Bxb1 {[%clk 0:02:41.5]}
21. Rxb1 {[%clk 0:02:15.7]} 21... b5 {[%clk 0:02:40.5]} 22. Bb3 {[%clk
0:02:11.5]} 22... Na5 {[%clk 0:02:27.8]} 23. Bc3 {[%clk 0:02:07.7]} 23... Qxc3
{[%clk 0:02:19.7]} 0-1

[Event "Live Chess"]
[Site "Chess.com"]
[Date "2023.05.20"]
[Round "-"]
[White "Kony20"]
[Black "azimchess2019"]
[Result "0-1"]
[WhiteElo "1324"]
[BlackElo "1376"]
[TimeControl "300"]
[EndTime "9:36:32 PDT"]
[Termination "azimchess2019 won by checkmate"]

1. e4 {[%clk 0:04:57.1]} 1... c5 {[%clk 0:04:59]} 2. Nf3 {[%clk 0:04:56.3]} 2...
d6 {[%clk 0:04:58.2]} 3. d4 {[%clk 0:04:55.8]} 3... cxd4 {[%clk 0:04:58.1]} 4.
Nxd4 {[%clk 0:04:55.2]} 4... Nf6 {[%clk 0:04:57.8]} 5. Nc3 {[%clk 0:04:52.6]}
5... g6 {[%clk 0:04:57.3]} 6. Be2 {[%clk 0:04:51.3]} 6... Bg7 {[%clk 0:04:56.8]}
7. O-O {[%clk 0:04:50.8]} 7... O-O {[%clk 0:04:56.1]} 8. f4 {[%clk 0:04:45.3]}
8... Nc6 {[%clk 0:04:55]} 9. f5 {[%clk 0:04:32.6]} 9... Nd7 {[%clk 0:04:43.9]}
10. Nxc6 {[%clk 0:04:31.6]} 10... bxc6 {[%clk 0:04:43.8]} 11. fxg6 {[%clk
0:04:29.6]} 11... hxg6 {[%clk 0:04:40.6]} 12. Bg5 {[%clk 0:04:26.3]} 12... Qb6+
{[%clk 0:04:37.1]} 13. Kh1 {[%clk 0:04:21.6]} 13... Qxb2 {[%clk 0:04:30.6]} 14.
Na4 {[%clk 0:04:15]} 14... Qxa1 {[%clk 0:04:25.7]} 15. Qxa1 {[%clk 0:04:12.7]}
15... Bxa1 {[%clk 0:04:25.6]} 16. Rxa1 {[%clk 0:04:11.5]} 16... Re8 {[%clk
0:04:18.6]} 17. Rf1 {[%clk 0:04:03.9]} 17... Nb6 {[%clk 0:04:17.3]} 18. Nc3
{[%clk 0:04:02]} 18... Be6 {[%clk 0:04:14]} 19. Rf3 {[%clk 0:03:59.8]} 19... Bc4
{[%clk 0:04:11.1]} 20. Bd3 {[%clk 0:03:56.8]} 20... Bxd3 {[%clk 0:04:10.1]} 21.
cxd3 {[%clk 0:03:56.7]} 21... Nd7 {[%clk 0:04:02]} 22. Rh3 {[%clk 0:03:55.6]}
22... Ne5 {[%clk 0:03:59.5]} 23. d4 {[%clk 0:03:52]} 23... Ng4 {[%clk
0:03:56.6]} 24. Ne2 {[%clk 0:03:48.3]} 24... Nf2+ {[%clk 0:03:55.6]} 25. Kg1
{[%clk 0:03:46.3]} 25... Nxh3+ {[%clk 0:03:55.5]} 26. gxh3 {[%clk 0:03:45.8]}
26... f6 {[%clk 0:03:54.7]} 27. Be3 {[%clk 0:03:44.4]} 27... Rab8 {[%clk
0:03:52.8]} 28. Nf4 {[%clk 0:03:44]} 28... Kg7 {[%clk 0:03:51]} 29. Ne6+ {[%clk
0:03:42.2]} 29... Kf7 {[%clk 0:03:49.9]} 30. Nc7 {[%clk 0:03:38.6]} 30... Rb1+
{[%clk 0:03:49.8]} 31. Kg2 {[%clk 0:03:36.9]} 31... Rc8 {[%clk 0:03:49.7]} 32.
Na6 {[%clk 0:03:35.2]} 32... Rb2+ {[%clk 0:03:48.3]} 33. Kg3 {[%clk 0:03:33.1]}
33... Rxa2 {[%clk 0:03:47.7]} 34. Nb4 {[%clk 0:03:31.6]} 34... Ra3 {[%clk
0:03:47.1]} 35. Nxc6 {[%clk 0:03:31]} 35... Rxc6 {[%clk 0:03:45.9]} 36. Kf4
{[%clk 0:03:29.3]} 36... Rcc3 {[%clk 0:03:45.1]} 37. Bd2 {[%clk 0:03:27.4]}
37... Rf3+ {[%clk 0:03:45]} 38. Kg4 {[%clk 0:03:25]} 38... f5+ {[%clk
0:03:43.3]} 39. Kh4 {[%clk 0:03:24.9]} 39... Rxh3+ {[%clk 0:03:41.7]} 40. Kg5
{[%clk 0:03:24]} 40... Rxh2 {[%clk 0:03:39.3]} 41. Bf4 {[%clk 0:03:20.8]} 41...
Rg2+ {[%clk 0:03:37.2]} 42. Kh4 {[%clk 0:03:17.6]} 42... Rg4# {[%clk 0:03:35.2]}
0-1

[Event "Live Chess"]
[Site "Chess.com"]
[Date "2023.05.20"]
[Round "-"]
[White "hturner40"]
[Black "daveeeeR"]
[Result "1-0"]
[WhiteElo "1866"]
[BlackElo "1254"]
[TimeControl "300"]
[EndTime "9:36:33 PDT"]
[Termination "hturner40 won by resignation"]

1. g3 {[%clk 0:04:56]} 1... c5 {[%clk 0:04:59.2]} 2. Nf3 {[%clk 0:04:54.1]} 2...
Nc6 {[%clk 0:04:58.1]} 3. Bg2 {[%clk 0:04:52.8]} 3... d5 {[%clk 0:04:56.9]} 4.
d4 {[%clk 0:04:51]} 4... c4 {[%clk 0:04:54.7]} 5. b3 {[%clk 0:04:48.6]} 5...
cxb3 {[%clk 0:04:52]} 6. axb3 {[%clk 0:04:47.1]} 6... e5 {[%clk 0:04:48.5]} 7.
Nxe5 {[%clk 0:04:40.6]} 7... Bb4+ {[%clk 0:04:46.3]} 8. c3 {[%clk 0:04:32.3]}
8... Bd6 {[%clk 0:04:42.3]} 9. Nxc6 {[%clk 0:04:19.6]} 9... bxc6 {[%clk
0:04:40.4]} 10. O-O {[%clk 0:04:18.3]} 10... Ne7 {[%clk 0:04:38.6]} 11. e4
{[%clk 0:04:15.8]} 11... O-O {[%clk 0:04:35]} 12. e5 {[%clk 0:04:05.2]} 12...
Bc7 {[%clk 0:04:33.8]} 13. Ba3 {[%clk 0:03:59.8]} 13... f6 {[%clk 0:04:30.5]}
14. exf6 {[%clk 0:03:45.3]} 14... Rxf6 {[%clk 0:04:28.3]} 15. Re1 {[%clk
0:03:40.7]} 15... Bd6 {[%clk 0:04:19.7]} 16. Bxd6 {[%clk 0:03:34.3]} 16... Qxd6
{[%clk 0:04:18]} 17. Nd2 {[%clk 0:03:27.6]} 17... Bd7 {[%clk 0:03:55.8]} 18. Nf3
{[%clk 0:03:16.5]} 18... Raf8 {[%clk 0:03:51.6]} 19. Qe2 {[%clk 0:02:59.5]}
19... Ng6 {[%clk 0:03:34.2]} 20. Ne5 {[%clk 0:02:46.6]} 20... Qc7 {[%clk
0:03:11.8]} 21. f4 {[%clk 0:02:40.5]} 21... Bf5 {[%clk 0:02:46.8]} 22. c4 {[%clk
0:02:20.3]} 22... Be4 {[%clk 0:02:42.3]} 23. Bxe4 {[%clk 0:02:13.2]} 23... dxe4
{[%clk 0:02:40.7]} 24. Qxe4 {[%clk 0:02:12]} 24... Nxe5 {[%clk 0:02:33.4]} 25.
dxe5 {[%clk 0:02:04.1]} 25... Re6 {[%clk 0:02:21.2]} 26. f5 {[%clk 0:01:37.5]}
26... Ree8 {[%clk 0:02:14.6]} 27. g4 {[%clk 0:01:32.3]} 27... Qb6+ {[%clk
0:02:07.1]} 28. Qe3 {[%clk 0:01:26.7]} 28... Rxe5 {[%clk 0:01:52.5]} 29. Qxb6
{[%clk 0:01:16.8]} 29... Rxe1+ {[%clk 0:01:50.9]} 30. Rxe1 {[%clk 0:01:14.9]}
30... axb6 {[%clk 0:01:50.2]} 31. Re6 {[%clk 0:01:08.4]} 31... Rc8 {[%clk
0:01:43.9]} 32. Re7 {[%clk 0:01:04.8]} 32... Kf8 {[%clk 0:01:41.8]} 33. Rb7
{[%clk 0:01:02.8]} 33... b5 {[%clk 0:01:40.2]} 34. cxb5 {[%clk 0:00:59.5]} 34...
cxb5 {[%clk 0:01:39.4]} 35. Rxb5 {[%clk 0:00:58.1]} 35... Kf7 {[%clk 0:01:36.3]}
36. g5 {[%clk 0:00:51.4]} 36... h6 {[%clk 0:01:31.5]} 37. h4 {[%clk 0:00:47.7]}
37... hxg5 {[%clk 0:01:16.3]} 38. hxg5 {[%clk 0:00:46.2]} 38... Rc1+ {[%clk
0:01:12.6]} 39. Kg2 {[%clk 0:00:45.2]} 39... Rc2+ {[%clk 0:01:06.7]} 40. Kg3
{[%clk 0:00:44.2]} 40... Rc1 {[%clk 0:01:06.1]} 41. Rb7+ {[%clk 0:00:41.2]}
41... Kf8 {[%clk 0:01:03.9]} 42. g6 {[%clk 0:00:39.6]} 42... Ke8 {[%clk
0:01:02.1]} 43. Rxg7 {[%clk 0:00:36.7]} 43... Rc3+ {[%clk 0:01:01.2]} 44. Kg4
{[%clk 0:00:34.8]} 44... Rxb3 {[%clk 0:01:01]} 45. Kg5 {[%clk 0:00:33.9]} 45...
Rb5 {[%clk 0:00:59.3]} 46. Kf6 {[%clk 0:00:31.9]} 46... Rb6+ {[%clk 0:00:58]}
47. Kg5 {[%clk 0:00:30.9]} 47... Rb5 {[%clk 0:00:55.9]} 48. Rf7 {[%clk
0:00:29.6]} 48... Rc5 {[%clk 0:00:50.4]} 49. Kh6 {[%clk 0:00:27.9]} 49... Rc6
{[%clk 0:00:46]} 50. Kg7 {[%clk 0:00:26.3]} 50... Kd8 {[%clk 0:00:39.3]} 51. Ra7
{[%clk 0:00:23.9]} 51... Ke8 {[%clk 0:00:26.2]} 52. f6 {[%clk 0:00:22.7]} 1-0

[Event "Live Chess"]
[Site "Chess.com"]
[Date "2023.05.20"]
[Round "-"]
[White "lateforthesky"]
[Black "BostonStrangler"]
[Result "0-1"]
[WhiteElo "2077"]
[BlackElo "2018"]
[TimeControl "300"]
[EndTime "9:36:35 PDT"]
[Termination "BostonStrangler won by resignation"]

1. e4 {[%clk 0:04:57.3]} 1... c5 {[%clk 0:04:59.2]} 2. Nf3 {[%clk 0:04:55.8]}
2... g6 {[%clk 0:04:59.1]} 3. c3 {[%clk 0:04:53.8]} 3... Nc6 {[%clk 0:04:56.4]}
4. Bc4 {[%clk 0:04:52.8]} 4... Bg7 {[%clk 0:04:54.5]} 5. O-O {[%clk 0:04:51.2]}
5... e6 {[%clk 0:04:53.7]} 6. d4 {[%clk 0:04:49.5]} 6... cxd4 {[%clk 0:04:52.3]}
7. Nxd4 {[%clk 0:04:48.6]} 7... Nge7 {[%clk 0:04:50]} 8. Nb5 {[%clk 0:04:41.6]}
8... d5 {[%clk 0:04:39.5]} 9. exd5 {[%clk 0:04:40.2]} 9... exd5 {[%clk
0:04:38.3]} 10. Bxd5 {[%clk 0:04:32.3]} 10... O-O {[%clk 0:04:36.5]} 11. Bxc6
{[%clk 0:04:25.7]} 11... Nxc6 {[%clk 0:04:33.1]} 12. Qxd8 {[%clk 0:04:21.7]}
12... Rxd8 {[%clk 0:04:33]} 13. Be3 {[%clk 0:04:18.7]} 13... a6 {[%clk
0:04:30.7]} 14. N5a3 {[%clk 0:04:12.4]} 14... Bf5 {[%clk 0:04:23.3]} 15. Nd2
{[%clk 0:04:11]} 15... Bd3 {[%clk 0:04:22]} 16. Rfe1 {[%clk 0:04:09.6]} 16... b5
{[%clk 0:04:18.3]} 17. Rac1 {[%clk 0:03:48.3]} 17... Rab8 {[%clk 0:04:09.8]} 18.
b3 {[%clk 0:03:33.1]} 18... Rbc8 {[%clk 0:03:48.9]} 19. c4 {[%clk 0:03:30.4]}
19... Bb2 {[%clk 0:03:46.9]} 20. cxb5 {[%clk 0:03:28]} 20... Bxc1 {[%clk
0:03:45.2]} 21. Rxc1 {[%clk 0:03:23.4]} 21... axb5 {[%clk 0:03:42.2]} 22. Nf3
{[%clk 0:03:19]} 22... Nb4 {[%clk 0:03:37.2]} 23. Rxc8 {[%clk 0:03:13.9]} 23...
Rxc8 {[%clk 0:03:34.7]} 24. h3 {[%clk 0:03:08.7]} 24... Nc2 {[%clk 0:03:32.1]}
25. Nxc2 {[%clk 0:03:04.5]} 25... Rxc2 {[%clk 0:03:32]} 26. a4 {[%clk 0:03:03]}
26... bxa4 {[%clk 0:03:30.2]} 27. bxa4 {[%clk 0:03:01.8]} 27... Ra2 {[%clk
0:03:29.4]} 28. Ne5 {[%clk 0:03:00.5]} 28... Bf5 {[%clk 0:03:19.4]} 29. g4
{[%clk 0:02:49.7]} 29... Be6 {[%clk 0:03:18.4]} 30. Nc6 {[%clk 0:02:37.9]} 30...
Rxa4 {[%clk 0:03:14.6]} 31. Nd4 {[%clk 0:02:36.5]} 31... Bd5 {[%clk 0:03:13]}
32. Kh2 {[%clk 0:02:35.2]} 32... f6 {[%clk 0:03:09.5]} 33. Kg3 {[%clk 0:02:34]}
33... Kf7 {[%clk 0:03:08.6]} 34. Ne2 {[%clk 0:02:30.7]} 34... Ke6 {[%clk
0:03:01.4]} 35. Nf4+ {[%clk 0:02:29.6]} 35... Ke5 {[%clk 0:02:57.4]} 36. Nxd5
{[%clk 0:02:28.1]} 36... Kxd5 {[%clk 0:02:56.1]} 37. Kf3 {[%clk 0:02:24.2]}
37... Ra3 {[%clk 0:02:53.6]} 38. Kf4 {[%clk 0:02:19.9]} 38... Ke6 {[%clk
0:02:48.8]} 39. h4 {[%clk 0:02:14.9]} 39... Ra4+ {[%clk 0:02:46.7]} 40. Kg3
{[%clk 0:02:08.7]} 40... Kd5 {[%clk 0:02:46.2]} 41. Kf3 {[%clk 0:02:03.3]} 41...
f5 {[%clk 0:02:42.3]} 42. gxf5 {[%clk 0:02:01.5]} 42... gxf5 {[%clk 0:02:41]}
43. Bg5 {[%clk 0:01:25.3]} 43... Ke5 {[%clk 0:02:33.7]} 44. Bd8 {[%clk
0:01:22.8]} 44... Ra3+ {[%clk 0:02:29.6]} 45. Kg2 {[%clk 0:01:21.6]} 45... Ke4
{[%clk 0:02:22.7]} 46. Bc7 {[%clk 0:01:18.7]} 46... f4 {[%clk 0:02:16.4]} 47.
Bb6 {[%clk 0:01:17.8]} 47... Rb3 {[%clk 0:02:14.1]} 48. Ba7 {[%clk 0:01:16.2]}
48... Rb7 {[%clk 0:02:11.8]} 49. Bc5 {[%clk 0:01:14.8]} 49... Rg7+ {[%clk
0:02:10]} 50. Kh3 {[%clk 0:01:12.7]} 50... Kf3 {[%clk 0:02:06.9]} 51. Bd4 {[%clk
0:01:11.1]} 51... Rd7 {[%clk 0:01:55.4]} 52. Bb6 {[%clk 0:01:09]} 52... Rd2
{[%clk 0:01:52.2]} 53. h5 {[%clk 0:01:06.9]} 53... Rxf2 {[%clk 0:01:48]} 54.
Bxf2 {[%clk 0:01:03.7]} 54... Kxf2 {[%clk 0:01:47.1]} 55. Kg4 {[%clk 0:01:02.5]}
55... Ke3 {[%clk 0:01:45.7]} 56. Kg5 {[%clk 0:01:01.6]} 56... f3 {[%clk
0:01:44.9]} 57. Kh6 {[%clk 0:01:01]} 57... f2 {[%clk 0:01:44.1]} 58. Kxh7 {[%clk
0:01:00.5]} 58... f1=Q {[%clk 0:01:43.2]} 59. h6 {[%clk 0:01:00]} 59... Qf7+
{[%clk 0:01:41.2]} 60. Kh8 {[%clk 0:00:58.9]} 60... Qf6+ {[%clk 0:01:37.2]} 61.
Kh7 {[%clk 0:00:55.9]} 61... Kf4 {[%clk 0:01:32.5]} 62. Kg8 {[%clk 0:00:54.5]}
0-1

[Event "Live Chess"]
[Site "Chess.com"]
[Date "2023.05.20"]
[Round "-"]
[White "SaraTang"]
[Black "xx_blindpuffin_xx"]
[Result "0-1"]
[WhiteElo "168"]
[BlackElo "2188"]
[TimeControl "300"]
[EndTime "9:36:38 PDT"]
[Termination "xx_blindpuffin_xx won by checkmate"]

1. e4 {[%clk 0:04:58.2]} 1... c5 {[%clk 0:04:57.6]} 2. Bc4 {[%clk 0:04:55.3]}
2... e6 {[%clk 0:04:55.6]} 3. Qf3 {[%clk 0:04:51.6]} 3... Nc6 {[%clk 0:04:51.5]}
4. Nh3 {[%clk 0:04:45.1]} 4... Ne5 {[%clk 0:04:50]} 5. Qf4 {[%clk 0:04:43]} 5...
Nxc4 {[%clk 0:04:48.5]} 6. Ng5 {[%clk 0:04:41.2]} 6... Qf6 {[%clk 0:04:44.9]} 7.
g3 {[%clk 0:04:32.2]} 7... h6 {[%clk 0:04:40.7]} 8. Nxf7 {[%clk 0:04:27.9]} 8...
Qxf7 {[%clk 0:04:39.3]} 9. Qxf7+ {[%clk 0:04:26.5]} 9... Kxf7 {[%clk 0:04:39.2]}
10. O-O {[%clk 0:04:15.5]} 10... Nf6 {[%clk 0:04:34.3]} 11. e5 {[%clk
0:04:10.6]} 11... Nxe5 {[%clk 0:04:32.9]} 12. Re1 {[%clk 0:04:07.8]} 12... Nf3+
{[%clk 0:04:31.7]} 13. Kf1 {[%clk 0:04:05.8]} 13... Nxe1 {[%clk 0:04:30]} 14.
Kxe1 {[%clk 0:04:02.7]} 14... b6 {[%clk 0:04:28.3]} 15. d3 {[%clk 0:04:00]}
15... Bb7 {[%clk 0:04:27.2]} 16. Bxh6 {[%clk 0:03:58.2]} 16... Rxh6 {[%clk
0:04:26.2]} 17. Nc3 {[%clk 0:03:55.4]} 17... Rxh2 {[%clk 0:04:25.2]} 18. Rd1
{[%clk 0:03:48.3]} 18... Bf3 {[%clk 0:04:23.3]} 19. Rd2 {[%clk 0:03:46.7]} 19...
Rh1# {[%clk 0:04:21.7]} 0-1